fUSD/lending_fUSD_20260309
["ID","MTS","AMOUNT","RATE_DAILY","PERIOD"]
[408058769,1773085837918,-500.0,0.00019199,2]
[408058770,1773085837927,-463.67956562,0.00019199,2]
[408058771,1773085837936,-2000.0,0.000192,2]
[408058772,1773085837945,-96952.311,0.000192,2]
[408058773,1773085837955,-2500.0,0.000192,2]
[408058774,1773085837966,-32099.41574182,0.000192,2]
[408058775,1773085837977,-178.85741599,0.00019205,2]
[408058776,1773085837987,-169.95501067,0.00019205,2]
[408058777,1773085837998,-500.0,0.00019216,2]
[408058778,1773085838009,-500.0,0.00019216,2]
[408058779,1773085838019,-500.0,0.00019216,2]
[408058780,1773085838030,-500.0,0.00019216,2]
[408058781,1773085838039,-150.0,0.00019226,2]
[408058782,1773085838049,-156.46651775,0.00019233,2]
[408058783,1773085838059,-1028.17250405,0.0001924,2]
[408058784,1773085838068,-1000.0,0.00019252,2]
[408058785,1773085838082,-2333.64,0.00019274,2]
[408058786,1773085838091,-32099.4157418,0.00019278,2]
[408058787,1773085838100,-1000.0,0.00019286,2]
[408058788,1773085838109,-157.00605747,0.00019288,2]
[408058789,1773085838119,-162.83308641,0.00019288,2]
[408058790,1773085838129,-1405.21389921,0.00019288,2]
[408058791,1773085838138,-150.0,0.00019291,2]
[408058792,1773085838147,-151.0,0.00019297,2]
[408058793,1773085838159,-500.0,0.00019299,2]
[408058794,1773085838169,-500.0,0.00019299,2]
[408058795,1773085838179,-500.0,0.00019299,2]
[408058796,1773085838189,-500.0,0.00019299,2]
[408058797,1773085838198,-500.0,0.00019299,2]
[408058798,1773085838208,-500.0,0.00019299,2]
[408058799,1773085838219,-500.0,0.00019299,2]
[408058800,1773085838229,-150.0,0.000193,2]
[408058801,1773085838238,-156.46651775,0.00019315,2]
[408058802,1773085838253,-150.0,0.00019316,2]
[408058803,1773085838263,-195.0,0.00019317,2]
[408058804,1773085838273,-1000.0,0.00019355,2]
[408058805,1773085838283,-32099.4157418,0.00019356,2]
[408058806,1773085838292,-2806.0,0.0001936,2]
[408058807,1773085838301,-1707.43374983,0.0001936,2]
[408058808,1773085838314,-314.27770579,0.0001936,2]
[408058809,1773085838325,-784.28854438,0.0001936,2]
[408058810,1773085838336,-1000.0,0.00019363,2]
[408058811,1773085838345,-162.83308641,0.0001937,2]
[408058812,1773085838355,-156.46651775,0.0001937,2]
[408058813,1773085838365,-600.0,0.0001938,2]
[408058814,1773085838374,-150.0,0.0001938,2]
[408058815,1773085838384,-150.0,0.0001938,2]
[408058816,1773085838394,-150.0,0.0001938,2]
[408058817,1773085838403,-150.0,0.0001938,2]
[408058818,1773085838412,-120.78757648,0.0001938,2]
[408058819,1773085838423,-29.21242352,0.0001938,2]
[408058820,1773085838432,-218.0,0.0001938,2]
[408058821,1773085838442,-411.76433937,0.00019381,2]
[408058822,1773085838451,-151.0,0.00019385,2]
[408058823,1773085838460,-150.0,0.00019386,2]
[408058824,1773085838470,-82.28627844,0.00019388,2]
[408058825,1773085838482,-577.71372156,0.00019388,2]
[408058826,1773085838491,-200.0,0.00019388,2]
[408058827,1773085838500,-200.0,0.00019388,2]
[408058828,1773085838520,-200.0,0.00019388,2]
[408058829,1773085838542,-200.0,0.00019388,2]
[408058830,1773085838558,-200.0,0.00019388,2]
[408058831,1773085838569,-346.0,0.00019388,2]
[408058832,1773085838581,-1405.21389921,0.0001939,2]
[408058833,1773085838592,-447.0,0.00019391,2]
[408058834,1773085838602,-1000.0,0.000194,2]
[408058835,1773085838612,-2039.01691577,0.000194,2]
[408058836,1773085838623,-2181.6451335,0.000194,2]
[408058837,1773085838634,-863.73012948,0.000194,2]
[408058838,1773085838645,-422.58467,0.000194,2]
[408058839,1773085838662,-12496.31740234,0.000194,2]
[408058840,1773085838683,-1548.78893979,0.000194,2]
[408058841,1773085838695,-1335.52720329,0.000194,2]
[408058842,1773085838706,-639.19197425,0.000194,2]
[408058844,1773085839619,-11391.59433158,0.000194,2]
[408058845,1773085839630,-155.38743832,0.00019425,2]
[408058846,1773085839640,-178.85741599,0.00019425,2]
[408058847,1773085839651,-157.00605747,0.00019425,2]
[408058848,1773085839660,-169.95501067,0.00019425,2]
[408058849,1773085839671,-32099.4157418,0.00019433,2]
[408058850,1773085839682,-1000.0,0.00019448,2]
[408058851,1773085839692,-500.0,0.00019452,7]
[408058852,1773085839702,-156.46651775,0.00019452,2]
[408058853,1773085839712,-1000.0,0.00019452,2]
[408058854,1773085839722,-200.0,0.00019465,30]
[408058855,1773085839731,-162.83308641,0.00019479,2]
[408058856,1773085839741,-195.0,0.0001949,2]
[408058857,1773085839752,-1405.21389921,0.00019492,2]
[408058858,1773085839760,-500.0,0.00019499,2]
[408058859,1773085839773,-500.0,0.00019499,2]
[408058860,1773085839783,-500.0,0.00019499,2]
[408058861,1773085839793,-500.0,0.00019499,2]
[408058862,1773085839804,-500.0,0.00019499,2]
[408058863,1773085839817,-500.0,0.00019499,2]
[408058864,1773085839829,-500.0,0.00019499,2]
[408058865,1773085839840,-500.0,0.00019499,2]
[408058866,1773085839852,-500.0,0.00019499,2]
[408058867,1773085839863,-500.0,0.00019499,2]
[408058868,1773085839876,-500.0,0.00019499,2]
[408058869,1773085839890,-500.0,0.00019499,2]
[408058870,1773085839899,-500.0,0.00019499,2]
[408058871,1773085839910,-500.0,0.00019499,2]
[408058872,1773085839919,-500.0,0.00019499,2]
[408058873,1773085839929,-500.0,0.00019499,2]
[408058874,1773085839940,-370.69943514,0.00019499,2]
[408058875,1773085839952,-500.0,0.00019499,2]
[408058876,1773085839962,-500.0,0.00019499,2]
[408058877,1773085839972,-500.0,0.00019499,2]
[408058878,1773085839982,-500.0,0.00019499,2]
[408058879,1773085839992,-500.0,0.00019499,2]
[408058880,1773085840003,-500.0,0.00019499,2]
[408058881,1773085840015,-500.0,0.00019499,2]
[408058882,1773085840026,-500.0,0.00019499,2]
[408058883,1773085840037,-500.0,0.00019499,2]
[408058884,1773085840047,-500.0,0.00019499,2]
[408058885,1773085840058,-500.0,0.00019499,2]
[408058886,1773085840069,-500.0,0.00019499,2]
[408058887,1773085840083,-500.0,0.00019499,2]
[408058888,1773085840093,-500.0,0.00019499,2]
[408058889,1773085840102,-500.0,0.00019499,2]
[408058890,1773085840111,-321.89,0.00019499,2]
[408058891,1773085840122,-500.0,0.00019499,2]
[408058892,1773085840131,-508.82940368,0.00019499,2]
[408058893,1773085840140,-500.0,0.00019499,2]
[408058894,1773085840150,-500.0,0.00019499,2]
[408058895,1773085840160,-500.0,0.00019499,2]
[408058896,1773085840169,-500.0,0.00019499,2]
[408058897,1773085840178,-500.0,0.00019499,2]
[408058898,1773085840187,-500.0,0.00019499,2]
[408058899,1773085840196,-500.0,0.00019499,2]
[408058900,1773085840206,-500.0,0.00019499,2]
[408058901,1773085840214,-500.0,0.00019499,2]
[408058902,1773085840224,-32099.4157418,0.00019511,2]
[408058903,1773085840233,-150.0,0.00019513,2]
[408058904,1773085840242,-156.46651775,0.00019534,2]
[408058905,1773085840252,-1000.0,0.00019547,2]
[408058907,1773085840261,-181.08010149,0.00019547,2]
[408058908,1773085840270,-719.04747942,0.00019547,2]
[408058909,1773085840279,-150.0,0.00019556,2]
[408058910,1773085840289,-157.00605747,0.00019562,2]
[408058911,1773085840299,-162.83308641,0.00019562,2]
[408058912,1773085840308,-1000.0,0.00019586,2]
[408058915,1773085840317,-32099.4157418,0.00019589,2]
[408058916,1773085840327,-1405.21389921,0.00019594,2]
[408058917,1773085840336,-500.0,0.00019596,2]
[408058918,1773085840346,-500.0,0.00019596,2]
[408058919,1773085840355,-1000.0,0.00019597,2]
[408058920,1773085840365,-1499.80778155,0.000196,2]
[408058921,1773085840374,-178.85741599,0.00019616,2]
[408058922,1773085840384,-169.95501067,0.00019616,2]
[408058923,1773085840393,-156.46651775,0.00019616,2]
[408058924,1773085840403,-500.0,0.00019618,2]
[408058925,1773085840412,-615.0,0.00019618,2]
[408058926,1773085840422,-150.0,0.00019623,2]
[408058927,1773085840431,-151.0,0.00019633,2]
[408058928,1773085840441,-151.0,0.00019633,2]
[408058929,1773085840451,-151.0,0.00019633,2]
[408058930,1773085840460,-151.0,0.00019633,2]
[408058931,1773085840470,-151.0,0.00019633,2]
[408058932,1773085840480,-151.0,0.00019633,2]
[408058933,1773085840490,-363.591776,0.00019633,2]
[408058934,1773085840499,-363.591776,0.00019633,2]
[408058935,1773085840510,-363.591776,0.00019633,2]
[408058936,1773085840520,-363.591776,0.00019633,2]
[408058937,1773085840529,-151.0,0.00019633,2]
[408058938,1773085840539,-428.691745,0.00019633,2]
[408058939,1773085840548,-428.691745,0.00019633,2]
[408058940,1773085840557,-428.691745,0.00019633,2]
[408058941,1773085840567,-428.691745,0.00019633,2]
[408058942,1773085840576,-162.83308641,0.00019644,2]
[408058943,1773085840586,-195.0,0.00019647,2]
[408058944,1773085840596,-250.0,0.00019651,2]
[408058945,1773085840609,-150.0,0.00019662,2]
[408058946,1773085840618,-304.63,0.00019663,2]
[408058947,1773085840628,-32099.4157418,0.00019667,2]
[408058948,1773085840638,-151.0,0.00019667,2]
[408058949,1773085840651,-318.0,0.0001967,5]
[408058950,1773085840661,-500.0,0.00019672,2]
[408058951,1773085840670,-500.0,0.00019672,2]
[408058952,1773085840679,-151.0,0.00019672,2]
[408058953,1773085840689,-151.0,0.00019672,2]
[408058954,1773085840698,-176.639564,0.00019672,2]
[408058955,1773085840707,-151.0,0.00019672,2]
[408058956,1773085840716,-151.0,0.00019672,2]
[408058957,1773085840725,-151.0,0.00019672,2]
[408058958,1773085840735,-876.661839,0.00019672,2]
[408058959,1773085840745,-151.0,0.00019672,2]
[408058960,1773085840754,-876.661839,0.00019672,2]
[408058961,1773085840764,-278.37993,0.00019672,2]
[408058962,1773085840774,-876.661839,0.00019672,2]
[408058963,1773085840784,-876.661839,0.00019672,2]
[408058964,1773085840794,-1189.979193,0.00019672,2]
[408058965,1773085840803,-1189.979193,0.00019672,2]
[408058966,1773085840813,-1189.979193,0.00019672,2]
[408058967,1773085840822,-1189.979193,0.00019672,2]
[408058968,1773085840833,-151.0,0.00019672,2]
[408058969,1773085840842,-603.127175,0.00019672,2]
[408058970,1773085840854,-337.763328,0.00019672,2]
[408058971,1773085840863,-603.127175,0.00019672,2]
[408058972,1773085840872,-337.763328,0.00019672,2]
[408058973,1773085840881,-603.127175,0.00019672,2]
[408058974,1773085840891,-337.763328,0.00019672,2]
[408058975,1773085840901,-603.127175,0.00019672,2]
[408058976,1773085840910,-337.763328,0.00019672,2]
[408058977,1773085840922,-626.58507519,0.00019673,2]
[408058978,1773085840932,-615.0,0.00019673,2]
[408058979,1773085840941,-500.0,0.00019673,2]
[408058980,1773085840951,-500.0,0.00019673,2]
[408058981,1773085840961,-179.48565848,0.00019673,2]
[408058982,1773085840971,-500.0,0.00019673,2]
[408058983,1773085840980,-469.0,0.00019673,2]
[408058984,1773085840990,-430.0,0.00019673,2]
[408058985,1773085841000,-164.64776858,0.00019673,2]
[408058986,1773085841009,-500.0,0.00019673,2]
[408058987,1773085841018,-500.0,0.00019673,2]
[408058988,1773085841027,-150.0,0.00019673,2]
[408058989,1773085841038,-500.0,0.00019673,2]
[408058990,1773085841047,-150.0,0.00019673,2]
[408058991,1773085841057,-2806.0,0.0001968,2]
[408058992,1773085841067,-2784.0,0.0001968,2]
[408058993,1773085841079,-1000.0,0.00019687,2]
[408058994,1773085841089,-1000.0,0.00019688,2]
[408058995,1773085841099,-540.14,0.00019693,2]
[408058996,1773085841108,-500.0,0.00019693,2]
[408058997,1773085841118,-500.0,0.00019693,2]
[408058998,1773085841128,-500.0,0.00019693,2]
[408058999,1773085841138,-1405.21389921,0.00019696,2]
[408059000,1773085841147,-157.00605747,0.00019699,2]
[408059001,1773085841159,-156.46651775,0.00019699,2]
[408059002,1773085841168,-500.0,0.00019699,2]
[408059003,1773085841178,-500.0,0.00019699,2]
[408059004,1773085841189,-500.0,0.00019699,2]
[408059005,1773085841199,-500.0,0.00019699,2]
[408059006,1773085841208,-500.0,0.00019699,2]
[408059007,1773085841218,-500.0,0.00019699,2]
[408059008,1773085841228,-500.0,0.00019699,2]
[408059009,1773085841238,-500.0,0.00019699,2]
[408059010,1773085841248,-500.0,0.00019699,2]
[408059011,1773085841259,-166.9,0.000197,2]
[408059012,1773085841269,-150.0,0.0001972,2]
[408059013,1773085841278,-500.0,0.00019721,2]
[408059014,1773085841287,-500.0,0.00019725,2]
[408059015,1773085841296,-1000.0,0.00019726,2]
[408059016,1773085841306,-615.0,0.00019728,2]
[408059017,1773085841316,-500.0,0.00019728,2]
[408059018,1773085841326,-500.0,0.00019728,2]
[408059019,1773085841337,-500.0,0.00019728,2]
[408059020,1773085841347,-469.0,0.00019728,2]
[408059021,1773085841356,-430.0,0.00019728,2]
[408059022,1773085841366,-500.0,0.00019728,2]
[408059023,1773085841375,-597.75730998,0.00019728,2]
[408059024,1773085841386,-500.0,0.00019728,2]
[408059025,1773085841396,-200.0,0.00019728,2]
[408059026,1773085841406,-1000.0,0.00019728,2]
[408059027,1773085841415,-1000.0,0.00019728,2]
[408059028,1773085841425,-250.0,0.00019728,2]
[408059029,1773085841434,-1000.0,0.00019729,2]
[408059030,1773085841443,-150.0,0.00019729,2]
[408059031,1773085841452,-1000.0,0.00019733,2]
[408059032,1773085841461,-150.0,0.00019733,2]
[408059033,1773085841472,-1000.0,0.00019734,2]
[408059034,1773085841482,-150.0,0.00019735,2]
[408059035,1773085841491,-1000.0,0.00019738,2]
[408059036,1773085841501,-1000.0,0.00019739,2]
[408059037,1773085841511,-32099.4157418,0.00019744,2]
[408059038,1773085841520,-250.0,0.00019745,2]
[408059039,1773085841530,-1000.0,0.00019748,2]
[408059040,1773085841541,-1000.0,0.00019749,2]
[408059041,1773085841550,-1000.0,0.00019751,2]
[408059042,1773085841561,-162.83308641,0.00019753,2]
[408059043,1773085841570,-156.46651775,0.00019753,2]
[408059044,1773085841580,-1000.0,0.00019754,2]
[408059045,1773085841589,-1000.0,0.00019756,2]
[408059046,1773085841599,-150.0,0.00019757,2]
[408059047,1773085841609,-1000.0,0.0001976,2]
[408059048,1773085841619,-1000.0,0.00019761,2]
[408059049,1773085841629,-151.0,0.00019763,2]
[408059050,1773085841639,-1000.0,0.00019765,2]
[408059051,1773085841648,-1000.0,0.00019766,2]
[408059052,1773085841657,-1000.0,0.00019772,2]
[408059053,1773085841667,-321.89,0.00019773,2]
[408059054,1773085841676,-1000.0,0.00019773,2]
[408059055,1773085841685,-1000.0,0.00019773,2]
[408059056,1773085841694,-1000.0,0.00019775,2]
[408059057,1773085841705,-150.0,0.00019779,2]
[408059058,1773085841714,-615.0,0.00019782,2]
[408059059,1773085841723,-350.0,0.00019783,2]
[408059060,1773085841732,-350.0,0.00019783,2]
[408059061,1773085841742,-500.0,0.00019783,2]
[408059062,1773085841751,-469.0,0.00019783,2]
[408059063,1773085841760,-430.0,0.00019783,2]
[408059064,1773085841769,-500.0,0.00019783,2]
[408059065,1773085841778,-500.0,0.00019783,2]
[408059066,1773085841787,-1000.0,0.00019783,2]
[408059067,1773085841796,-2187.0,0.00019783,2]
[408059068,1773085841806,-250.0,0.00019786,2]
[408059069,1773085841815,-1000.0,0.00019789,2]
[408059070,1773085841824,-1000.0,0.00019791,2]
[408059071,1773085841833,-1000.0,0.00019791,2]
[408059072,1773085841842,-1000.0,0.00019793,2]
[408059073,1773085841851,-2979.2,0.00019795,2]
[408059074,1773085841860,-2979.2,0.00019795,2]
[408059075,1773085841871,-2979.2,0.00019795,2]
[408059076,1773085841880,-3025.49,0.00019795,2]
[408059077,1773085841889,-250.0,0.00019797,2]
[408059078,1773085841898,-1405.21389921,0.00019798,2]
[408059079,1773085841908,-179.9875646,0.000198,2]
[408059080,1773085841917,-2000.0,0.000198,2]
[408059081,1773085841926,-2000.0,0.000198,2]
[408059082,1773085841936,-2000.0,0.000198,2]
[408059083,1773085841945,-2000.0,0.000198,2]
[408059084,1773085841954,-1000.0,0.00019812,2]
[408059085,1773085841963,-1000.0,0.00019813,2]
[408059086,1773085841973,-151.0,0.00019813,2]
[408059087,1773085841982,-304.63,0.00019813,2]
[408059088,1773085841991,-1000.0,0.00019814,2]
[408059089,1773085842000,-1000.0,0.00019815,2]
[408059090,1773085842010,-1000.0,0.00019816,2]
[408059091,1773085842019,-471.24818002,0.00019819,2]
[408059092,1773085842028,-500.0,0.00019819,2]
[408059093,1773085842037,-263.28611024,0.00019819,2]
[408059094,1773085842046,-333.53519794,0.00019819,2]
[408059095,1773085842055,-150.0,0.0001982,2]
[408059096,1773085842065,-2057.45248293,0.00019821,2]
[408059097,1773085842075,-32099.4157418,0.00019822,2]
[408059098,1773085842089,-152.0,0.00019823,5]
[408059099,1773085842109,-150.0,0.00019826,2]
[408059100,1773085842130,-1000.0,0.00019828,2]
[408059101,1773085842152,-544.10422838,0.00019833,2]
[408059102,1773085842172,-151.0,0.00019833,2]
[408059103,1773085842181,-151.0,0.00019833,2]
[408059108,1773085842386,-151.0,0.00019833,2]
[408059109,1773085842396,-151.0,0.00019833,2]
[408059111,1773085842405,-500.0,0.00019835,2]
[408059113,1773085842414,-500.0,0.00019835,2]
[408059115,1773085842424,-1000.0,0.00019835,2]
[408059117,1773085842433,-150.0,0.00019835,2]
[408059119,1773085842444,-151.0,0.00019835,2]
[408059120,1773085842454,-428.691745,0.00019835,2]
[408059121,1773085842463,-428.691745,0.00019835,2]
[408059122,1773085842472,-428.691745,0.00019835,2]
[408059123,1773085842482,-428.691745,0.00019835,2]
[408059124,1773085842491,-178.85741599,0.00019836,2]
[408059125,1773085842500,-157.00605747,0.00019836,2]
[408059126,1773085842510,-162.83308641,0.00019836,2]
[408059128,1773085842519,-169.95501067,0.00019836,2]
[408059130,1773085842529,-156.46651775,0.00019836,2]
[408059131,1773085842540,-500.0,0.00019836,2]
[408059132,1773085842549,-615.0,0.00019837,2]
[408059133,1773085842558,-500.0,0.00019837,2]
[408059134,1773085842568,-469.0,0.00019837,2]
[408059135,1773085842578,-430.0,0.00019837,2]
[408059136,1773085842588,-500.0,0.00019837,2]
[408059137,1773085842600,-500.0,0.00019837,2]
[408059138,1773085842610,-1000.0,0.0001984,2]
[408059139,1773085842619,-200.0,0.0001984,2]
[408059140,1773085842629,-1000.0,0.00019841,2]
[408059141,1773085842638,-150.0,0.00019841,2]
[408059142,1773085842648,-544.10422835,0.00019844,2]
[408059143,1773085842658,-1000.0,0.00019847,2]
[408059144,1773085842667,-1000.0,0.00019847,2]
[408059145,1773085842676,-150.0,0.00019847,2]
[408059146,1773085842685,-1000.0,0.00019848,2]
[408059147,1773085842696,-250.0,0.00019848,2]
[408059148,1773085842706,-1000.0,0.00019849,2]
[408059149,1773085842715,-151.0,0.0001985,2]
[408059150,1773085842725,-250.0,0.00019852,2]
[408059151,1773085842734,-150.0,0.00019853,2]
[408059152,1773085842743,-1000.0,0.00019853,2]
[408059153,1773085842754,-1000.0,0.00019855,2]
[408059154,1773085842764,-544.10422835,0.00019855,2]
[408059155,1773085842774,-150.0,0.00019859,2]
[408059156,1773085842785,-1000.0,0.0001986,2]
[408059157,1773085842796,-2816.083,0.00019861,2]
[408059158,1773085842805,-168.996,0.00019861,2]
[408059159,1773085842815,-1000.0,0.00019861,2]
[408059160,1773085842824,-238.5,0.00019865,2]
[408059161,1773085842834,-1000.0,0.00019866,2]
[408059162,1773085842845,-544.10422835,0.00019867,2]
[408059163,1773085842855,-1000.0,0.00019867,2]
[408059165,1773085842863,-151.0,0.00019867,2]
[408059166,1773085842872,-151.0,0.00019867,2]
[408059167,1773085842881,-151.0,0.00019867,2]
[408059168,1773085842890,-151.0,0.00019867,2]
[408059169,1773085842899,-151.0,0.00019867,2]
[408059170,1773085842910,-151.0,0.00019867,2]
[408059172,1773085842919,-363.591776,0.00019867,2]
[408059173,1773085842928,-363.591776,0.00019867,2]
[408059174,1773085842938,-363.591776,0.00019867,2]
[408059175,1773085842949,-363.591776,0.00019867,2]
[408059176,1773085842958,-151.0,0.00019867,2]
[408059177,1773085842968,-151.0,0.00019867,2]
[408059178,1773085842978,-876.661839,0.00019867,2]
[408059179,1773085842989,-151.0,0.00019867,2]
[408059180,1773085842999,-876.661839,0.00019867,2]
[408059181,1773085843010,-876.661839,0.00019867,2]
[408059182,1773085843020,-876.661839,0.00019867,2]
[408059183,1773085843029,-500.0,0.00019867,2]
[408059185,1773085843038,-1189.979193,0.00019867,2]
[408059187,1773085843047,-1189.979193,0.00019867,2]
[408059188,1773085843057,-1189.979193,0.00019867,2]
[408059189,1773085843066,-1189.979193,0.00019867,2]
[408059190,1773085843078,-156.246041,0.00019867,2]
[408059191,1773085843089,-603.127175,0.00019867,2]
[408059192,1773085843099,-337.763328,0.00019867,2]
[408059193,1773085843108,-603.127175,0.00019867,2]
[408059194,1773085843119,-337.763328,0.00019867,2]
[408059195,1773085843128,-603.127175,0.00019867,2]
[408059196,1773085843138,-337.763328,0.00019867,2]
[408059197,1773085843147,-603.127175,0.00019867,2]
[408059198,1773085843157,-337.763328,0.00019867,2]
[408059199,1773085843167,-500.0,0.00019867,2]
[408059200,1773085843175,-151.337108,0.00019868,2]
[408059201,1773085843185,-1000.0,0.00019873,2]
[408059202,1773085843194,-1000.0,0.00019875,2]
[408059203,1773085843203,-1000.0,0.00019877,2]
[408059204,1773085843212,-544.10422835,0.00019878,2]
[408059205,1773085843221,-1000.0,0.00019879,2]
[408059206,1773085843231,-151.0,0.00019884,2]
[408059207,1773085843241,-151.0,0.00019884,2]
[408059208,1773085843253,-151.0,0.00019884,2]
[408059209,1773085843264,-1000.0,0.00019885,2]
[408059210,1773085843274,-151.0,0.00019888,2]
[408059211,1773085843284,-544.10422835,0.00019889,2]
[408059212,1773085843294,-1000.0,0.0001989,2]
[408059213,1773085843303,-1000.0,0.00019891,2]
[408059214,1773085843314,-150.0,0.00019891,2]
[408059215,1773085843323,-154.136104,0.00019891,2]
[408059216,1773085843332,-615.0,0.00019892,2]
[408059217,1773085843342,-500.0,0.00019892,2]
[408059218,1773085843353,-469.0,0.00019892,2]
[408059219,1773085843362,-430.0,0.00019892,2]
[408059220,1773085843371,-500.0,0.00019892,2]
[408059221,1773085843381,-500.0,0.00019892,2]
[408059222,1773085843391,-1000.0,0.00019897,2]
[408059223,1773085843400,-3160.7594,0.000199,2]
[408059224,1773085843409,-544.10422835,0.000199,2]
[408059225,1773085843419,-151.0,0.000199,2]
[408059226,1773085843428,-2696.08229643,0.000199,2]
[408059227,1773085843438,-32099.4157418,0.000199,2]
[408059228,1773085843447,-1744.43292007,0.000199,2]
[408059229,1773085843457,-1405.21389921,0.000199,2]
[408059230,1773085843466,-250.0,0.000199,2]
[408059231,1773085843475,-4240.0,0.000199,2]
[408059232,1773085843484,-4083.0,0.000199,2]
[408059233,1773085843494,-1000.0,0.00019901,2]
[408059234,1773085843503,-1000.0,0.00019901,2]
[408059235,1773085843513,-500.0,0.00019902,2]
[408059236,1773085843522,-500.0,0.00019902,2]
[408059237,1773085843532,-500.0,0.00019902,2]
[408059238,1773085843541,-740.93,0.00019902,2]
[408059239,1773085843550,-3109.13,0.00019902,2]
[408059240,1773085843560,-2260.84,0.00019902,2]
[408059241,1773085843570,-62406.89154826,0.00019903,2]
[408059242,1773085843579,-1000.0,0.00019908,2]
[408059243,1773085843588,-1000.0,0.00019912,2]
[408059244,1773085843612,-250.0,0.00019913,2]
[408059245,1773085843630,-1000.0,0.00019917,2]
[408059246,1773085843649,-150.0,0.00019917,2]
[408059247,1773085843668,-179.0,0.00019918,2]
[408059248,1773085843684,-1000.0,0.00019922,2]
[408059249,1773085843703,-150.0,0.00019924,2]
[408059250,1773085843722,-151.0,0.00019925,2]
[408059251,1773085843740,-1000.0,0.00019931,2]
[408059252,1773085843758,-1000.0,0.00019933,2]
[408059253,1773085843775,-1106.41192988,0.00019936,2]
[408059254,1773085843796,-1000.0,0.0001994,2]
[408059255,1773085843811,-167.67444217,0.0001994,2]
[408059256,1773085843825,-1000.0,0.00019942,2]
[408059257,1773085843843,-615.0,0.00019947,2]
[408059258,1773085843856,-264.04850966,0.00019947,2]
[408059259,1773085843871,-469.0,0.00019947,2]
[408059260,1773085843884,-430.0,0.00019947,2]
[408059261,1773085843900,-615.25102143,0.00019947,2]
[408059262,1773085843914,-402.46098408,0.00019947,2]
[408059263,1773085843929,-1000.0,0.00019948,2]
[408059264,1773085843945,-1000.0,0.00019948,2]
[408059265,1773085843967,-250.0,0.00019952,2]
[408059266,1773085843982,-1000.0,0.00019954,2]
[408059267,1773085843997,-1000.0,0.00019955,2]
[408059268,1773085844012,-150.0,0.00019956,2]
[408059269,1773085844026,-1342.0,0.00019963,2]
[408059270,1773085844040,-1042.0,0.00019963,2]
[408059271,1773085844056,-3505.0,0.00019963,2]
[408059272,1773085844071,-1279.0,0.00019963,2]
[408059273,1773085844087,-150.0,0.00019963,2]
[408059274,1773085844103,-200.0,0.00019963,2]
[408059275,1773085844119,-2461.0,0.00019963,2]
[408059276,1773085844136,-922.0,0.00019963,2]
[408059277,1773085844152,-1000.0,0.00019963,2]
[408059278,1773085844168,-150.0,0.00019963,2]
[408059279,1773085844183,-151.0,0.00019963,2]
[408059280,1773085844199,-1000.0,0.00019966,2]
[408059281,1773085844214,-1000.0,0.00019968,2]
[408059282,1773085844229,-400.0,0.0001997,2]
[408059283,1773085844245,-400.0,0.0001997,2]
[408059284,1773085844260,-400.0,0.0001997,2]
[408059285,1773085844275,-541.01514806,0.0001997,2]
[408059286,1773085844291,-1000.0,0.0001997,2]
[408059287,1773085844306,-500.0,0.00019971,2]